bitfinex-derivatives/quotes_SOLF0:USTF0_20250228
["timestamp","ask_amount","ask_price","bid_price","bid_amount"]
[1740725716723,16.62,127.64,127.56,0.05905849]
[1740725716931,0.04942941,127.58,127.56,0.05905849]
[1740725717129,16.62,127.64,127.51,1.56850443]
[1740725717524,0.06016907,127.58,127.57,7.847]
[1740725717719,0.06016907,127.58,127.56,0.0581528]
[1740725717925,20.7329,127.68,127.51,1.56850443]
[1740725717926,1.44256552,127.67,127.51,1.56850443]
[1740725718126,0.05140209,127.58,127.56,0.05842728]
[1740725718527,1.44256552,127.67,127.51,1.56850443]
[1740725718731,0.05428715,127.58,127.56,0.05019638]
[1740725719023,16.6,127.6,127.51,1.56850443]
[1740725719325,1.44122033,127.59,127.49,341.63733744]
[1740725719734,7.8483,127.56,127.49,341.63733744]
[1740725720023,190.0,127.59,127.49,128.07733744]
[1740725720228,0.05874341,127.54,127.51,0.0498491]
[1740725720419,0.05874341,127.54,127.49,128.07733744]
[1740725720622,5.42959624,127.57,127.49,128.07733744]
[1740725720825,5.42959624,127.57,127.48,23.15891649]
[1740725720826,3.9893,127.57,127.48,23.15891649]
[1740725721029,1.44006365,127.56,127.42,155.20715393]
[1740725721335,1.44006365,127.56,127.42,156.77676623]
[1740725721528,3.9893,127.57,127.48,0.05847591]
[1740725721529,0.05296017,127.5,127.48,0.05847591]
[1740725721725,0.05296017,127.5,127.49,7.8522]
[1740725721925,16.6,127.6,127.43,1.56948913]
[1740725722126,16.6,127.6,127.48,0.05544569]
[1740725722526,1.44028062,127.59,127.43,1.56948913]
[1740725722730,1.44028062,127.59,127.46,128.07733744]
[1740725723435,0.05578644,127.54,127.51,0.0583163]
[1740725723829,0.05578644,127.54,127.48,3.7887]
[1740725724025,0.05578644,127.54,127.51,0.04939487]
[1740725724632,3.97578644,127.54,127.47,23.25568195]
[1740725724932,8.0586,127.53,127.47,23.25568195]
[1740725725132,7.8528,127.48,127.47,23.25568195]
[1740725725434,16.62,127.52,127.47,23.25568195]
[1740725726030,0.05058533,127.51,127.48,0.05230053]
[1740725727029,7.8669,127.61,127.48,0.05230053]
[1740725727234,15.7119,127.61,127.48,0.05230053]
[1740725727535,15.7119,127.61,127.47,7.9884]
[1740725727536,16.62,127.65,127.47,7.9884]
[1740725727832,7.9335,127.68,127.47,7.9884]
[1740725728141,18.04240928,127.67,127.48,16.6]
[1740725728443,0.05875785,127.59,127.56,0.05704671]
[1740725728730,1.44233336,127.66,127.53,7.8493]
[1740725728731,7.8457,127.6,127.53,7.8493]
[1740725729128,0.05241842,127.59,127.56,0.05268537]
[1740725729325,7.8471,127.58,127.47,7.9884]
[1740725729529,190.0,127.65,127.47,7.9884]
[1740725729731,1.44036084,127.64,127.56,0.05759335]
[1740725729933,0.05221109,127.57,127.56,0.05759335]
[1740725730126,0.05221109,127.57,127.47,7.9884]
[1740725730327,16.6,127.59,127.47,7.9884]
[1740725731232,0.04957405,127.54,127.52,0.05334384]
[1740725731434,16.6,127.59,127.52,0.05334384]
[1740725731736,0.04959853,127.54,127.52,0.05334384]
[1740725731926,16.6,127.59,127.52,0.05334384]
[1740725732531,0.05277484,127.57,127.52,0.05334384]
[1740725733239,0.05277484,127.57,127.52,7.90364384]
[1740725733536,0.05277484,127.57,127.52,0.05334384]
[1740725734333,7.8437,127.63,127.52,213.53334384]
[1740725734531,7.8437,127.63,127.52,213.48]
[1740725734734,3.7943,127.66,127.52,213.48]
[1740725734931,3.8286,127.68,127.52,213.48]
[1740725735739,0.05102482,127.61,127.59,0.05736507]
[1740725736041,1.4378918,127.67,127.52,213.48]
[1740725736243,46.73176744,127.68,127.52,213.48]
[1740725736244,0.05187973,127.61,127.59,0.05514905]
[1740725736539,7.8444,127.62,127.57,7.8471]
[1740725736731,0.05461177,127.61,127.59,0.05742685]
[1740725737139,0.05461177,127.61,127.59,7.90302685]
[1740725738437,0.05461177,127.61,127.59,0.05742685]
[1740725739043,0.05461177,127.61,127.59,7.90282685]
[1740725739243,0.05461177,127.61,127.59,0.05742685]
[1740725739639,0.05461177,127.61,127.6,7.8454]
[1740725740236,0.05461177,127.61,127.59,7.90322685]
[1740725740441,0.05461177,127.61,127.59,0.05742685]
[1740725741043,0.05461177,127.61,127.53,3.9907]
[1740725741243,7.8467,127.58,127.52,187.18923661]
[1740725741439,7.8467,127.58,127.47,7.9884]
[1740725741643,190.0,127.63,127.47,7.9884]
[1740725741844,191.43718912,127.62,127.5,7.8512]
[1740725742146,1.43718912,127.61,127.5,7.8512]
[1740725742347,0.04950168,127.57,127.55,0.049604]
[1740725742551,0.04950168,127.57,127.44,217.5143]
[1740725742736,1.43695957,127.6,127.45,1.56924284]
[1740725743241,16.44,127.64,127.45,1.56924284]
[1740725743443,12.1633206,127.63,127.45,1.56924284]
[1740725743642,0.05179499,127.56,127.53,0.05170906]
[1740725743836,1.43776099,127.62,127.45,1.56924284]
[1740725744042,0.05290412,127.56,127.45,1.56924284]
[1740725744242,1.43776099,127.62,127.45,1.56924284]
[1740725744445,0.05914702,127.52,127.49,0.0568262]
[1740725744638,10.72579186,127.63,127.5,1.56862745]
[1740725744841,3.8045,127.62,127.5,1.56862745]
[1740725745248,7.8452,127.61,127.54,7.849]
[1740725745652,3.8045,127.62,127.54,7.849]
[1740725745844,0.05434913,127.59,127.56,0.05921466]
[1740725747351,0.05434913,127.59,127.5,1.56862745]
[1740725747751,7.8479,127.56,127.5,1.56862745]
[1740725748549,0.05414494,127.54,127.52,0.0493835]
[1740725750255,3.97414494,127.54,127.44,213.4]
[1740725750446,4.1453,127.53,127.44,213.4]
[1740725751049,7.8512,127.51,127.44,221.2548]
[1740725751247,4.1453,127.53,127.38,4.0452]
[1740725751450,7.8533,127.48,127.46,0.05796323]
[1740725751756,16.3,127.48,127.4,7.8573]
[1740725752152,24.1533,127.48,127.4,7.8573]
[1740725752453,4.1453,127.53,127.4,1.56985871]
[1740725752650,4.0907,127.55,127.4,1.56985871]
[1740725752846,4.0907,127.55,127.46,0.05514291]
[1740725753050,8.994e-05,127.49,127.4,1.56985871]
[1740725753250,11.6948,127.59,127.4,1.56985871]
[1740725753445,3.8487,127.59,127.4,1.56985871]
[1740725753656,14.48929186,127.61,127.4,1.56985871]
[1740725753858,6.744e-05,127.53,127.4,1.56985871]
[1740725754052,6.744e-05,127.53,127.52,7.8503]
[1740725754651,61.57099109,127.54,127.5,3.8439]
[1740725754955,50.21039109,127.54,127.51,0.05436105]
[1740725756763,0.05298876,127.54,127.51,0.05436105]
[1740725757652,0.05298876,127.54,127.51,3.97436105]
[1740725758156,0.05298876,127.54,127.51,0.05436105]
[1740725759159,3.7635,127.65,127.51,3.97436105]
[1740725759350,3.9103,127.69,127.5,3.8439]
[1740725759749,3.9103,127.69,127.51,1.56850443]
[1740725760355,0.04974095,127.61,127.59,0.05325464]
[1740725760755,3.9103,127.69,127.51,1.56850443]
[1740725760961,0.05457428,127.61,127.51,1.56850443]
[1740725761160,16.12,127.6,127.51,1.56850443]
[1740725761362,191.43759038,127.67,127.51,1.56850443]
[1740725761363,4.0155,127.59,127.51,1.56850443]
[1740725761563,24.2439,127.66,127.51,1.56850443]
[1740725761759,28.2594,127.66,127.51,1.56850443]
[1740725762254,0.05127738,127.6,127.57,0.05813838]
[1740725762454,191.43795472,127.65,127.51,1.56850443]
[1740725762655,1.43795472,127.64,127.51,1.56850443]
[1740725763269,190.0,127.63,127.51,1.56850443]
[1740725763460,191.43795472,127.62,127.51,1.56850443]
[1740725763659,0.05353309,127.58,127.56,1.625e-05]
[1740725765957,7.8473,127.57,127.56,1.625e-05]
[1740725766162,11.8781,127.57,127.56,1.625e-05]
[1740725766362,15.9671,127.57,127.56,1.625e-05]
[1740725767071,19.8871,127.57,127.56,1.625e-05]
[1740725767661,7.8517,127.5,127.39,16.1]
[1740725767867,202.1909,127.57,127.42,4.1067]
[1740725768267,191.43811514,127.56,127.42,4.1067]
[1740725768468,1.43811514,127.55,127.42,4.1067]
[1740725768665,191.43872306,127.54,127.42,4.1067]
[1740725768970,0.05093951,127.5,127.47,6.36e-06]
[1740725769161,7.8528,127.48,127.47,6.36e-06]
[1740725769366,4.1231,127.49,127.39,213.44]
[1740725769566,3.777,127.47,127.39,213.44]
[1740725770167,0.05461767,127.44,127.42,0.04963859]
[1740725773674,3.8928,127.52,127.42,3.96963859]
[1740725773877,3.8928,127.52,127.43,3.8458]
[1740725774171,3.8928,127.52,127.44,7.8551]
[1740725774376,4.0484,127.53,127.43,3.8458]
[1740725774569,3.9537,127.56,127.46,7.854]
[1740725774772,3.9537,127.56,127.43,3.8458]
[1740725774773,23.9212,127.57,127.43,3.8458]
[1740725774968,0.05469603,127.52,127.5,0.05377925]
[1740725775172,0.05469603,127.52,127.5,3.89957925]
[1740725775373,7.9412,127.57,127.5,3.89957925]
[1740725775572,23.8041,127.63,127.5,217.41957925]
[1740725775767,4.0484,127.62,127.5,221.33957925]
[1740725775973,4.0484,127.62,127.5,217.3658]
[1740725776273,3.802,127.63,127.54,7.8491]
[1740725776469,128.72077882,127.65,127.5,217.3658]
[1740725776470,128.72077882,127.65,127.55,1.56801254]
[1740725776674,128.72077882,127.65,127.57,7.8472]
[1740725776877,0.05567222,127.61,127.59,0.05854957]
[1740725780378,0.05567222,127.61,127.55,1.56801254]
[1740725781679,0.05567222,127.61,127.57,0.058119]
[1740725784690,1.49156811,127.61,127.57,0.058119]
[1740725784889,1.49156811,127.61,127.51,3.9461]
[1740725785085,3.9408,127.62,127.51,3.9461]
[1740725785287,3.9408,127.62,127.52,1.56838143]
[1740725785984,0.05609288,127.58,127.56,0.05503846]
[1740725787386,0.05609288,127.58,127.52,1.56838143]
[1740725788590,0.05609288,127.58,127.54,0.05641349]
[1740725789588,0.05609288,127.58,127.56,7.8475]
[1740725789787,0.05609288,127.58,127.54,0.05641349]
[1740725789982,3.9367,127.65,127.55,1.56801254]
[1740725790289,3.9367,127.65,127.6,7.8453]
[1740725790483,3.8343,127.67,127.56,3.7796]
[1740725790888,3.8343,127.67,127.61,7.8443]
[1740725791089,0.05210124,127.62,127.61,7.8443]
[1740725791289,3.8343,127.67,127.61,7.8443]
[1740725791489,0.05692607,127.63,127.61,7.8443]
[1740725792494,0.05692607,127.63,127.6,7.89861712]
[1740725792788,0.05692607,127.63,127.6,0.05321712]
[1740725792988,0.05692607,127.63,127.61,7.8444]
[1740725793397,0.05692607,127.63,127.6,0.05321712]
[1740725793792,0.05692607,127.63,127.55,1.56801254]
[1740725793994,1.44217063,127.65,127.55,1.56801254]
[1740725794494,3.8343,127.67,127.55,1.56801254]
[1740725794694,3.8343,127.67,127.56,3.7611]
[1740725794890,3.8343,127.67,127.59,0.05701246]
[1740725795097,0.0563396,127.62,127.59,0.05701246]
[1740725795697,3.8343,127.67,127.59,0.05701246]
[1740725795899,4.0011,127.7,127.59,0.05701246]
[1740725796198,4.0011,127.7,127.56,3.7611]
[1740725796199,4.0011,127.7,127.56,5.323]
[1740725796496,4.0011,127.7,127.66,7.8417]
[1740725796698,4.0011,127.7,127.57,1.56776671]
[1740725796894,4.0011,127.7,127.67,0.05658541]
[1740725797094,11.8405,127.7,127.57,1.56776671]
[1740725797401,4.0011,127.7,127.57,1.56776671]
[1740725798295,4.0011,127.7,127.62,0.05220192]
[1740725798495,9.803e-05,127.65,127.57,1.56776671]
[1740725798697,4.0011,127.7,127.57,1.56776671]
[1740725799797,7.212e-05,127.65,127.64,7.843]
[1740725800098,4.0011,127.7,127.61,213.32]
[1740725800296,9.28187294,127.69,127.64,7.8429]
[1740725800491,7.84,127.69,127.64,7.8429]
[1740725800695,4.0011,127.7,127.61,213.32]
[1740725800899,0.05348835,127.68,127.65,0.06003878]
[1740725801098,0.05348835,127.68,127.61,213.32]
[1740725801903,0.05348835,127.68,127.63,7.8435]
[1740725802094,0.05348835,127.68,127.61,213.32]
[1740725802302,4.11158835,127.68,127.64,0.05093114]
[1740725802596,4.11158835,127.68,127.65,7.8422]
[1740725802802,4.11158835,127.68,127.64,0.05093114]
[1740725803097,4.11158835,127.68,127.67,7.8411]
[1740725804098,4.0011,127.7,127.64,0.05093114]
[1740725804703,4.0279,127.73,127.64,0.05093114]
[1740725804898,4.0279,127.73,127.65,1.56678417]
[1740725805097,4.0279,127.73,127.66,4.0494]
[1740725805396,6.631e-05,127.7,127.69,7.8399]
[1740725806803,6.631e-05,127.7,127.69,11.7599]
[1740725808206,32.25044061,127.85,127.78,7.8339]
[1740725808402,7.8278,127.84,127.75,213.24]
[1740725808599,15.6586,127.84,127.75,213.24]
[1740725808800,7.8278,127.84,127.8,7.8329]
[1740725808997,7.8278,127.84,127.76,4.051]
[1740725809301,7.8278,127.84,127.78,7.8342]
[1740725809499,0.05109842,127.81,127.79,0.05600665]
[1740725810502,0.05109842,127.81,127.75,213.24]
[1740725811699,0.05109842,127.81,127.77,0.05669595]
[1740725811902,0.05109842,127.81,127.75,213.24]
[1740725812096,1.49156378,127.81,127.75,213.24]
[1740725812302,7.88389842,127.81,127.75,213.24]
[1740725812601,0.05109842,127.81,127.75,213.24]
[1740725812901,0.05109842,127.81,127.75,214.80555772]
[1740725813103,0.05109842,127.81,127.77,0.05536696]
[1740725815407,0.05109842,127.81,127.78,7.8343]
[1740725815903,0.05109842,127.81,127.77,0.05536696]
[1740725816108,0.05109842,127.81,127.78,7.8342]
[1740725816510,0.05109842,127.81,127.77,0.05536696]
[1740725816702,0.05109842,127.81,127.8,7.8331]
[1740725818706,9.842e-05,127.81,127.8,7.8331]
[1740725821002,9.842e-05,127.81,127.77,0.05536696]
[1740725822307,9.842e-05,127.81,127.66,216.9647]
[1740725822608,190.0,127.81,127.66,217.0632]
[1740725822809,195.58033503,127.8,127.66,217.0632]
[1740725823005,191.44033503,127.79,127.66,213.06]
[1740725823314,7.8386,127.72,127.66,213.06]
[1740725823508,191.44033503,127.78,127.66,213.06]
[1740725823509,0.0564074,127.74,127.71,0.05396154]
[1740725823711,1.44100387,127.77,127.66,213.06]
[1740725823912,7.8382,127.72,127.66,213.06]
[1740725824206,190.0,127.76,127.66,213.06]
[1740725824207,3.8077,127.78,127.66,213.06]
[1740725824414,4.14,127.76,127.66,213.06]
[1740725824616,1.44105826,127.75,127.66,213.06]
[1740725824809,190.0,127.74,127.66,213.06]
[1740725825010,0.0534943,127.72,127.69,0.0556829]
[1740725825314,15.28,127.72,127.58,213.06]
[1740725825515,5.826e-05,127.71,127.59,27.5616]
[1740725825813,3.8077,127.78,127.6,1.42765633]
[1740725826115,4.0025,127.84,127.6,1.42765633]
[1740725826309,6.337e-05,127.7,127.68,0.04948603]
[1740725826612,32.25044061,127.87,127.84,7.8302]
[1740725827413,36.25294061,127.9,127.8,213.1]
[1740725827615,0.0507072,127.87,127.84,0.05537985]
[1740725828004,7.2e-06,127.87,127.86,7.8295]
[1740725828611,7.2e-06,127.87,127.84,0.05537985]
[1740725828811,7.2e-06,127.87,127.85,7.8298]
[1740725829413,7.2e-06,127.87,127.84,0.05537985]
[1740725830717,7.2e-06,127.87,127.84,7.88607985]
[1740725831125,7.2e-06,127.87,127.84,1.61983541]
[1740725832113,7.2e-06,127.87,127.86,7.8295]
[1740725832820,7.2e-06,127.87,127.86,11.7495]
[1740725833012,7.2e-06,127.87,127.86,13.31371085]
[1740725833221,7.2e-06,127.87,127.86,9.39371085]
[1740725835125,7.2e-06,127.87,127.86,13.31371085]
[1740725835322,13.71627455,128.01,127.96,7.8232]
[1740725835521,12.284,128.01,127.9,212.94]
[1740725835716,12.284,128.01,127.91,1.5635994]
[1740725836622,0.0520602,127.97,127.95,0.05316086]
[1740725836923,0.0520602,127.97,127.91,1.5635994]
[1740725837916,0.0520602,127.97,127.94,7.8244]
[1740725838123,0.0520602,127.97,127.93,0.05682514]
[1740725838422,0.0520602,127.97,127.96,7.8233]
[1740725838621,0.0520602,127.97,127.93,0.05682514]
[1740725839221,6.02e-05,127.97,127.93,0.05682514]
[1740725839425,6.02e-05,127.97,127.93,1.62018009]
[1740725839620,6.02e-05,127.97,127.96,7.8233]
[1740725843122,6.02e-05,127.97,127.93,1.62018009]
[1740725844929,6.02e-05,127.97,127.85,103.35899613]
[1740725845124,5.39059801,127.99,127.85,103.35899613]
[1740725845324,1.43169801,127.98,127.89,7.8272]
[1740725845525,190.0,127.97,127.85,103.35899613]
[1740725845724,190.0,127.96,127.83,3.8157]
[1740725845920,190.0,127.96,127.82,212.8]
[1740725845921,1.43281799,127.95,127.82,212.8]
[1740725846125,7.8259,127.92,127.83,7.8312]
[1740725846328,4.18793877,127.91,127.88,0.05641892]
[1740725846629,3.877e-05,127.91,127.82,212.8]
[1740725846934,4.0363,128.02,127.84,23.52]
[1740725847119,4.0363,128.02,127.98,7.8221]
[1740725847326,4.0363,128.02,127.85,8.0208]
[1740725847828,11.8561,128.02,127.85,8.0208]
[1740725848028,0.05190782,127.95,127.92,0.05170473]
[1740725848225,0.05190782,127.95,127.93,7.8252]
[1740725848427,4.0363,128.02,127.93,7.8252]
[1740725848620,0.05306093,127.95,127.85,8.0208]
[1740725848923,4.0363,128.02,127.96,0.05812134]
[1740725849133,4.0363,128.02,127.93,212.8]
[1740725849427,0.05622411,128.0,127.98,0.05745247]
[1740725849622,5.22454326,128.09,127.94,5.50663276]
[1740725849825,0.05978667,127.98,127.96,0.05398917]
[1740725850016,0.05978667,127.98,127.94,5.50663276]
[1740725850017,1.43144326,128.08,127.94,5.50663276]
[1740725850218,4.065,128.07,127.96,0.05088226]
[1740725850418,0.05529597,128.02,127.94,5.50663276]
[1740725850620,1.43144326,128.06,128.0,0.05527319]
[1740725850818,1.43144326,128.06,127.94,5.50663276]
[1740725850819,0.05340602,127.99,127.94,5.50663276]
[1740725851828,6.02e-06,127.99,127.94,5.50663276]
[1740725852029,6.02e-06,127.99,127.95,1.56311059]
[1740725852827,6.02e-06,127.99,127.96,0.05125826]
[1740725853526,6.02e-06,127.99,127.96,1.61424669]
[1740725853722,6.02e-06,127.99,127.96,5.51424669]
[1740725853930,6.02e-06,127.99,127.97,3.7644]
[1740725854229,6.02e-06,127.99,127.98,9.38484417]
[1740725855226,6.02e-06,127.99,127.98,1.56274417]
[1740725855526,6.02e-06,127.99,127.96,0.05125826]
[1740725857930,6.02e-06,127.99,127.96,1.61424669]
[1740725859029,6.02e-06,127.99,127.97,1.56286629]
[1740725859324,6.02e-06,127.99,127.98,7.8221]
[1740725859528,6.02e-06,127.99,127.98,9.38484417]
[1740725860228,6.02e-06,127.99,127.98,13.28484417]
[1740725860927,6.02e-06,127.99,127.98,17.23484417]
[1740725863225,6.02e-06,127.99,127.98,13.33484417]
[1740725863425,6.02e-06,127.99,127.98,9.38484417]
[1740725865024,6.02e-06,127.99,127.98,13.28484417]
[1740725865626,6.02e-06,127.99,127.98,9.38484417]
[1740725867329,6.02e-06,127.99,127.98,1.56274417]
[1740725867527,6.02e-06,127.99,127.96,0.05125826]
[1740725868130,6.02e-06,127.99,127.97,7.8227]
[1740725869028,6.02e-06,127.99,127.98,7.8221]
[1740725869434,6.02e-06,127.99,127.96,0.05125826]
[1740725870632,6.02e-06,127.99,127.96,7.87415826]
[1740725871228,6.02e-06,127.99,127.93,212.8]
[1740725872631,6.02e-06,127.99,127.95,0.05084912]
[1740725874941,6.02e-06,127.99,127.98,7.8221]
[1740725877236,6.02e-06,127.99,127.97,7.8225]
[1740725877440,6.02e-06,127.99,127.95,0.05084912]
[1740725877836,6.02e-06,127.99,127.96,7.823]
[1740725878230,6.02e-06,127.99,127.95,0.05084912]
[1740725879342,4.09570602,127.99,127.95,0.05084912]
[1740725880046,4.09570602,127.99,127.94,7.8241]
[1740725880346,4.0957,127.99,127.87,4.72259049]
[1740725880549,4.0957,127.99,127.87,6.28667901]
[1740725880849,4.0957,127.99,127.87,1.56408852]
[1740725881043,1.43223413,127.98,127.87,1.56408852]
[1740725881247,0.05509507,127.94,127.87,1.56408852]
[1740725881742,7.8258,127.92,127.85,7.8295]
[1740725881939,8.156,127.91,127.8,3.8805]
[1740725882142,0.06019835,127.9,127.88,7.8281]
[1740725882344,3.96019835,127.9,127.81,1.56482278]
[1740725882549,8.156,127.91,127.81,1.56482278]
[1740725882749,0.05523161,127.87,127.81,1.56482278]
[1740725884147,190.0,127.86,127.79,86.39354465]
[1740725884342,190.0,127.86,127.7,90.48834465]
[1740725884557,7.89097932,127.84,127.77,7.8348]
[1740725884855,7.9024,127.83,127.7,92.05451536]
[1740725885058,0.05350956,127.82,127.71,1.56604807]
[1740725885265,7.9024,127.83,127.71,1.56604807]
[1740725885460,0.05249251,127.78,127.77,7.835]
[1740725885661,7.9024,127.83,127.71,1.56604807]
[1740725885857,0.05912074,127.79,127.71,1.56604807]
[1740725886160,15.24,127.8,127.71,1.56604807]
[1740725886361,0.05055662,127.76,127.71,1.56604807]
[1740725886858,3.97055662,127.76,127.62,85.90974465]
[1740725887059,3.9596,127.75,127.68,7.8405]
[1740725887263,3.9596,127.75,127.62,85.90974465]
[1740725887562,2.47e-05,127.73,127.62,85.90974465]
[1740725887857,3.9596,127.83,127.63,1.43539793]
[1740725888063,1.43416164,127.82,127.64,15.24]
[1740725888264,3.9596,127.83,127.64,15.24]
[1740725888462,3.9596,127.83,127.65,1.43471336]
[1740725888865,3.46e-06,127.75,127.72,0.0536]
[1740725889253,3.9596,127.83,127.65,1.43441315]
[1740725890055,9.119e-05,127.75,127.73,0.05074775]
[1740725890256,9.119e-05,127.75,127.74,7.8368]
[1740725890467,3.9596,127.83,127.74,4.0332]
[1740725891062,3.9596,127.83,127.73,3.857]
[1740725891263,7.8319,127.82,127.73,3.857]
[1740725891471,0.05237051,127.8,127.77,0.05858611]
[1740725891760,0.05237051,127.8,127.72,212.92]
[1740725892167,1.4341954,127.81,127.72,212.92]
[1740725892363,11.9141,127.82,127.72,212.92]
[1740725892561,1.4342236,127.81,127.72,212.92]
[1740725892964,0.05602765,127.78,127.75,0.05870776]
[1740725893163,2.765e-05,127.78,127.75,0.05870776]
[1740725893365,2.765e-05,127.78,127.75,3.97870776]
[1740725893562,2.765e-05,127.78,127.77,7.835]
[1740725893962,2.765e-05,127.78,127.77,11.755]
[1740725896762,2.765e-05,127.78,127.77,7.835]
[1740725898467,2.765e-05,127.78,127.76,7.8354]
[1740725898671,2.765e-05,127.78,127.75,0.05870776]
[1740725899668,11.75482765,127.78,127.72,212.92]
[1740725899865,2.765e-05,127.78,127.72,212.92]
[1740725900170,2.765e-05,127.78,127.77,7.835]
[1740725902571,2.765e-05,127.78,127.77,15.6674]
[1740725903870,2.765e-05,127.78,127.77,7.835]
[1740725904475,2.765e-05,127.78,127.77,11.9642]
[1740725904675,2.765e-05,127.78,127.77,15.8842]
[1740725905072,2.765e-05,127.78,127.77,11.9642]
[1740725905670,2.765e-05,127.78,127.77,7.835]
[1740725909080,2.765e-05,127.78,127.77,11.755]
[1740725909884,2.765e-05,127.78,127.77,7.835]
[1740725911680,120.0,127.97,127.77,7.835]
[1740725911681,190.0,127.98,127.91,7.826]
[1740725911980,5.49420711,127.97,127.82,212.96]
[1740725912178,1.43250711,127.96,127.83,4.0095]
[1740725912379,9.25600711,127.96,127.9,7.8266]
[1740725912581,4.0617,127.97,127.83,4.0095]
[1740725912980,8.919e-05,127.91,127.9,7.827]
[1740725913181,4.0617,127.97,127.83,4.0095]
[1740725913686,4.0617,127.97,127.84,1.56445556]
[1740725913883,3.8769,127.98,127.84,1.56445556]
[1740725914284,9.057e-05,127.92,127.89,0.05645435]
[1740725914687,42.94656832,127.99,127.94,7.8244]
[1740725914880,42.94656832,127.99,127.84,1.56445556]
[1740725915281,42.94656832,127.99,127.94,7.8241]
[1740725915577,7.9939,128.0,127.9,0.05579911]
[1740725915887,0.05161258,127.98,127.94,0.05647015]
[1740725916279,7.9939,128.0,127.84,1.56445556]
[1740725916984,0.05400601,127.93,127.91,7.87871162]
[1740725917184,0.05400601,127.93,127.91,0.05241162]
[1740725917377,0.0580665,127.93,127.91,0.05870427]
[1740725918182,0.0580665,127.93,127.91,7.88460427]
[1740725918382,0.0580665,127.93,127.91,0.05870427]
[1740725918688,43.66170047,128.11,127.91,0.05870427]
[1740725918882,7.8173,128.06,127.91,0.05870427]
[1740725919081,1.43163175,128.05,127.9,3.9203]
[1740725919277,4.0527,128.08,127.99,7.8211]
[1740725919278,7.8174,128.06,127.99,7.8211]
[1740725919482,1.43155788,128.05,127.91,1.5635994]
[1740725919682,190.0,128.07,127.91,1.5635994]
[1740725919683,1.43138428,128.06,127.91,1.5635994]
[1740725919883,0.05701249,127.99,127.97,0.05234997]
[1740725920083,7.8176,128.06,127.93,212.86]
[1740725920288,197.8167,128.07,128.01,7.8203]
[1740725920488,0.05855385,128.01,127.94,1.56323276]
[1740725920686,4.0527,128.08,128.03,0.05724355]
[1740725920884,4.0527,128.08,128.04,7.818]
[1740725921290,4.0527,128.08,127.94,1.56323276]
[1740725921985,0.05373359,128.02,128.01,7.8203]
[1740725922387,4.0527,128.08,127.94,1.56323276]
[1740725922587,0.05604723,128.03,128.0,0.05431401]
[1740725922890,0.05604723,128.03,127.94,1.56323276]
[1740725923088,0.05604723,128.03,128.0,0.05692653]
[1740725923280,0.05604723,128.03,127.94,1.56323276]
[1740725923281,4.0527,128.08,127.94,1.56323276]
[1740725923480,0.05671157,128.03,128.0,0.05943769]
[1740725923789,0.05671157,128.03,128.02,7.8197]
[1740725924189,4.0527,128.08,128.0,0.05917733]
[1740725924491,0.05988086,128.04,127.95,3.8153]
[1740725924687,8.086e-05,128.04,127.96,16.78298843]
[1740725924893,8.1972,128.1,128.06,7.8168]
[1740725925081,8.1972,128.1,127.97,9.34656629]
[1740725925286,8.1972,128.1,127.98,1.56274417]
[1740725925489,7.8165,128.08,128.03,7.8186]
[1740725925890,0.05270531,128.07,128.04,0.05664553]
[1740725926091,7.86940531,128.07,128.04,0.05664553]
[1740725926293,3.95270531,128.07,128.04,0.05664553]
[1740725926490,7.8176,128.06,128.01,7.8203]
[1740725926691,143.52,128.18,128.01,7.8203]
[1740725926692,25.70206832,128.23,128.02,30.8592]
[1740725926988,262.70137906,128.27,128.02,30.8592]
[1740725926989,250.75487906,128.27,128.04,23.52]
[1740725927190,235.02117906,128.27,128.13,23.52]
[1740725927393,222.61837906,128.27,128.15,23.52]
[1740725927587,222.61837906,128.27,128.14,20.83889288]
[1740725927588,222.61837906,128.27,128.16,214.26054931]
[1740725927788,0.0504722,128.22,128.2,0.0519185]
[1740725928887,222.61837906,128.27,128.21,1.55994072]
[1740725930090,0.05525042,128.25,128.23,0.05323018]
[1740725930496,0.05525042,128.25,128.24,1.55957579]
[1740725932186,0.05525042,128.25,128.24,106.18056574]
[1740725934492,0.05525042,128.25,128.24,21.47054924]
[1740725934697,7.7167,128.34,128.24,21.47054924]
[1740725935699,0.05156651,128.3,128.28,0.05632149]
[1740725935899,7.7167,128.34,128.24,1.55957579]
[1740725935900,15.2,128.31,128.24,1.55957579]
[1740725936901,14.38444,128.31,128.24,1.55957579]
[1740725937103,0.05612693,128.29,128.26,0.05304703]